Cogmind - Beta 15 @@@ ROGUE MODE // 2025.07.12 @ 17:36:10 Player: LameThyst Result: Destroyed by 52-G5D(R) with Subdweller Laser Performance ------------- Evolutions (0) 0 Regions Visited (2) 400 Robots Destroyed (27) 135 Value Destroyed (579) 579 Prototype IDs (1) 20 Alien Tech Used (0) 0 Bonus (0) 0 TOTAL SCORE: 1134 Bonus ------- None Cogmind --------- Core Integrity 0/250 Matter 285/300 Energy 200/200 System Corruption 0% Temperature Cool (6) Movement Rolling (110) Location -10/Subcaves Parts ------- > --- POWER (1) -------- Subdweller Power Source > --- PROPULSION (2) --- Subdweller Monowheel Subdweller Monowheel > --- UTILITY (2) ------ Medium Storage Unit Light Armor Plating > --- WEAPON (2) ------- Subdweller Laser Heavy Battle Rifle > --- INVENTORY (10) --- Subdweller Power Source Aluminum Leg Aluminum Leg Improved Heat Sink Machine Analyzer Sensor Array Signal Interpreter EM Pulse Gun Subdweller Shrapnel Launcher Hammer Peak State ------------ > --- POWER ------------ Makeshift Power Source > --- PROPULSION ------- Subdweller Monowheel Subdweller Monowheel > --- UTILITY ---------- Medium Storage Unit Light Armor Plating > --- WEAPON ----------- Subdweller Laser Heavy Battle Rifle > --- INVENTORY -------- Subdweller Power Source Aluminum Leg Aluminum Leg Improved Heat Sink Machine Analyzer Sensor Array Signal Interpreter EM Pulse Gun Subdweller Shrapnel Launcher Hammer [Rating: 17] Favorites ----------- Power Ion Engine Engine Ion Engine Propulsion Aluminum Leg Leg Aluminum Leg Wheel Subdweller Monowheel Utility Seismic Detector Device Seismic Detector Storage Medium Storage Unit Processor Transport Network Coupler Protection Light Armor Plating Weapon Assault Rifle Energy Gun EM Pulse Gun Energy Cannon Advanced Beam Cannon Ballistic Gun Assault Rifle Special Weapon Mining Laser Impact Weapon Hammer Build | -11 -10 -10 ------- Run | Yrd Mat Sub Slots Evolved . | . . . Power . | . . . Propulsion . | . . . Utility . | . . . Weapon . | . . . Parts Attached 36 | 8 19 9 Power 6 | 2 1 3 Engine 6 | 2 1 3 Core . | . . . Reactor . | . . . Propulsion 10 | 2 6 2 Treads . | . . . Leg 8 | 2 6 . Wheel 2 | . . 2 Hover . | . . . Flight . | . . . Utility 6 | 2 3 1 Device 1 | 1 . . Storage 3 | 1 2 . Processor 1 | . 1 . Hackware . | . . . Protection 1 | . . 1 Artifact . | . . . Weapon 14 | 2 9 3 Energy Gun 2 | . 1 1 Energy Cannon 2 | . 2 . Ballistic Gun 8 | 2 4 2 Ballistic Cannon . | . . . Launcher . | . . . Special Weapon 1 | . 1 . Impact Weapon 1 | . 1 . Slashing Weapon . | . . . Piercing Weapon . | . . . Special Melee Weapon . | . . . Unidentified Prototypes 1 | . 1 . Parts Lost 5 | . . 5 Power 3 | . . 3 Propulsion . | . . . Utility 1 | . . 1 Weapon 1 | . . 1 Highest Loss Streak 3 | . . 3 To Critical Strikes . | . . . Average Backups 9 | 3 9 9 Power . | 1 1 . Propulsion 2 | 1 1 2 Utility 3 | . 3 4 Weapon 2 | 1 2 2 Tool/Special . | . . . Unused Backups 15 | 1 8 6 Power 2 | . 1 1 Propulsion 3 | . 3 . Utility 6 | . 2 4 Weapon 4 | 1 2 1 Tool/Special . | . . . Average Slot Usage (%) 98 | . 99 91 Engine 13 | . 13 13 Leg 26 | . 28 17 Wheel 1 | . . 10 Device 12 | . 14 1 Storage 14 | . 14 14 Energy Gun 6 | . 5 10 Ballistic Gun 21 | . 22 15 Peak Build Rating 17 | 7 11 17 Average Rating 8 | 5 8 11 On Entrance 5 | . 7 10 Naked Turns . | . . . Heaviest Build 26 | 15 22 26 Greatest Support 40 | 20 20 40 Greatest Overweight (x) 1 | . 1 1 Average Overweight (x) . | . . . Largest Inventory Capacity 10 | 8 10 10 Average Capacity 9 | 7 9 10 Most Carried 10 | 7 10 10 Average Carried 9 | 4 9 9 Final Capacity 10 | 8 10 10 Final Carried 10 | 7 10 10 Class Distribution -------------------- 76% | Scavenger-Mutant 23% | Mutant Dominant Class ---------------- Scavenger-Mutant | -10/Materials Mutant | -10/Subcaves Resources | -11 -10 -10 ----------- Run | Yrd Mat Sub Matter Collected 1242 | 340 652 250 Remotely . | . . . Salvage Created 1008 | 171 654 183 Parts 64 | 15 39 10 Haulers Intercepted 2 | . 2 . Recyclers Shooed 2 | . 2 . Parts Field Recycled . | . . . Retrieved Matter . | . . . Parts Self-Destructed 6 | . . 6 Prevented . | . . . Kills | -11 -10 -10 ------- Run | Yrd Mat Sub Combat Hostiles Destroyed 14 | . 9 5 Guns 14 | . 9 5 Classes Destroyed 9 | 3 5 1 Worker 1 | 1 . . Tunneler 4 | 4 . . Hauler 2 | . 2 . Recycler 3 | 1 2 . Mechanic 1 | . 1 . Watcher 2 | . 2 . Swarmer 3 | . 3 . Grunt 6 | . 6 . Subdweller 5 | . . 5 Best Kill Streak 3 | 3 3 2 Combat Bots Only 2 | . 2 2 Max Kills in Single Turn 1 | 1 1 1 Gunslinging . | . . . Exploded . | . . . Melee . | . . . Uniques/NPCs Destroyed . | . . . Combat | -11 -10 -10 -------- Run | Yrd Mat Sub Hostile Shots Fired 92 | . 39 53 Missed 20 | . 11 9 Hits 72 | . 28 44 Projectile 72 | . 28 44 Critical Strikes 1 | . 1 . Damage Taken 1260 | . 335 925 Core 266 | . 43 223 Absorbed by Shields . | . . . Regen/Repaired (Parts) 42 | . 42 . Core Remaining (%) 100 | 100 . . Volleys Fired 110 | 9 70 31 Largest 2 | 2 2 2 Hottest 100 | 40 100 93 Shots Fired 204 | 18 135 51 Gun 200 | 18 131 51 Cannon 2 | . 2 . Launcher . | . . . Special 2 | . 2 . Kinetic 165 | 18 111 36 Thermal 19 | . 4 15 Explosive . | . . . Electromagnetic 20 | . 20 . Robot Hit Streak 13 | 7 7 13 Robot Miss Streak 4 | 1 4 1 Penetration Max . | . . . Secondary Targets . | . . . Shots Hit Robots 127 | 12 73 42 Core Hits 47 | 6 31 10 Critical Kills 2 | . 2 . Critical Parts Destroyed . | . . . Critical Strikes 4 | . 3 1 Destroy 3 | . 2 1 Corrupt 1 | . 1 . Melee Attacks 9 | . 3 6 Impact 9 | . 3 6 Slashing . | . . . Piercing . | . . . Sneak Attacks . | . . . Combat Hostiles . | . . . Follow-up Attacks . | . . . Damage Inflicted 1939 | 164 1049 726 Guns 1917 | 164 1027 726 Cannons . | . . . Explosions 20 | . 20 . Melee . | . . . Ramming 2 | . 2 . Kinetic 1534 | 164 833 537 Thermal 209 | . 20 189 Explosive . | . . . Electromagnetic 194 | . 194 . Impact . | . . . Slashing . | . . . Piercing . | . . . Highest Corruption . | . . . Average Corruption . | . . . Corruption Purged . | . . . Corruption Blocked . | . . . Overload Shots . | . . . Overflow Damage . | . . . Projectiles . | . . . Explosions . | . . . Melee . | . . . Knockbacks . | . . . Impact . | . . . Kinetic . | . . . Secondary . | . . . Self-Inflicted Damage . | . . . Shots . | . . . Rammed . | . . . Targets Rammed 1 | . 1 . Kicked 1 | . 1 . Crushed . | . . . Highest Temperature 411 | . 411 2 Average Temperature 79 | . 81 1 Received Heat Transfer 378 | . 177 201 Effects 1 | . 1 . Energy Bleed 1 | . 1 . Siege Activations . | . . . Martial Activations . | . . . Shielding Activations . | . . . Robots Disrupted . | . . . Combat Hostiles . | . . . Robots Corrupted . | . . . Combat Hostiles . | . . . Parts Fried 1 | . 1 . Impact Corruptions . | . . . Robots Melted . | . . . Combat Hostiles . | . . . Parts Melted 4 | . . 4 Heat Transferred 275 | . 50 225 Parts Sabotaged . | . . . Parts Stolen . | . . . Parts Stripped . | . . . Power Chain Reactions 1 | . 1 . Alert | -11 -10 -10 ------- Run | Yrd Mat Sub Maximum Alert Level . | . . . Low Security (%) 100 | 100 100 . Level 1 . | . . . Level 2 . | . . . Level 3 . | . . . Level 4 . | . . . Level 5 . | . . . High Security . | . . . Max Security . | . . . Peak Influence 86 | 5 86 . Initial 3 | . 3 . Average 19 | 2 20 . Influence Increases 403 | 30 373 . Destroy 0b10 Robot/C 180 | . 180 . Destroy 0b10 Robot/NC 65 | 30 35 . Destroy Leader 48 | . 48 . Successful Hack 29 | . 29 . Disable Machine 15 | . 15 . Destroy Structure 6 | . 6 . Partial Spotted 15 | . 15 . Lose Combat Pursuer 45 | . 45 . Influence Decreases 403 | 25 378 . Entered New Map 2 | . 2 . Time Decay 401 | 25 376 . Squads Dispatched . | . . . Investigation . | . . . Extermination . | . . . Reinforcement . | . . . Assault . | . . . Garrison . | . . . Intercept . | . . . Searches Triggered . | . . . Construction Impeded . | . . . Haulers Reinforced . | . . . Active Scanning Responses . | . . . Cargo Convoy Interrupts . | . . . Stealth | -11 -10 -10 --------- Run | Yrd Mat Sub Distress Signals 1 | . 1 . Communications Jammed . | . . . Distress Signals . | . . . Times Spotted 28 | . 21 7 Peak Tracking Total 3 | . 3 2 Tactical Retreats 2 | . 2 . Traps | -11 -10 -10 ------- Run | Yrd Mat Sub Traps Triggered . | . . . Indirectly . | . . . Trap Hack Attempts . | . . . Triggered . | . . . Disarmed . | . . . Reprogrammed . | . . . Reused . | . . . Traps Extracted . | . . . Installed . | . . . Triggered . | . . . Machines | -11 -10 -10 ---------- Run | Yrd Mat Sub Machines Disabled 1 | . 1 . Max in Single Turn 1 | . 1 . Machines Repaired . | . . . Machines Dismantled . | . . . Machines Sabotaged . | . . . Overloaded Fab Kills . | . . . Hacking | -11 -10 -10 --------- Run | Yrd Mat Sub Machines Accessed 10 | . 10 . Terminals 7 | . 7 . Fabricators . | . . . Repair Stations 1 | . 1 . Recycling Units 2 | . 2 . Scanalyzers . | . . . Garrison Access . | . . . Total Hacks 31 | . 31 . Successful 13 | . 13 . Failed 18 | . 18 . Catastrophic 1 | . 1 . Database Lockouts . | . . . Manual 24 | . 24 . Terminals 18 | . 18 . Fabricators . | . . . Repair Stations 5 | . 5 . Recycling Units 8 | . 8 . Scanalyzers . | . . . Garrison Access . | . . . Terminal Hacks . | . . . Fabricator Hacks . | . . . Repair Station Hacks 4 | . 4 . Scan Component 2 | . 2 . Repair 2 | . 2 . Recycling Unit Hacks 1 | . 1 . Retrieve Components 1 | . 1 . Scanalyzer . | . . . Garrison Access Hacks . | . . . Unauthorized Hacks 8 | . 8 . Terminals 6 | . 6 . Botnet 1 | . 1 . Skim 5 | . 5 . Fabricators . | . . . Repair Stations . | . . . Recycling Units 2 | . 2 . Reject 1 | . 1 . Recyclers 1 | . 1 . Scanalyzers . | . . . Garrison Access . | . . . Data Cores Recovered . | . . . Used . | . . . Hacking Detections 10 | . 10 . Full Trace Events . | . . . Feedback Events . | . . . Feedback Blocked . | . . . Robot Schematics Acquired . | . . . Robots Built . | . . . Authchips . | . . . Time . | . . . Total Robot Build Rating . | . . . Part Schematics Acquired . | . . . Parts Built . | . . . Authchips . | . . . Time . | . . . Total Part Build Rating . | . . . Parts Repaired 2 | . 2 . Time 52 | . 52 . Parts Recycled . | . . . Recycled Matter . | . . . Retrieved Matter . | . . . Retrieved Components 9 | . 9 . Parts Scanalyzed . | . . . Part Schematics Acquired . | . . . Parts Damaged . | . . . Bothacking | -11 -10 -10 ------------ Run | Yrd Mat Sub Used RIF Installer . | . . . Robots Hacked . | . . . Non-combat . | . . . Combat . | . . . Robot Hacks Applied . | . . . Relay Couplers Released . | . . . Fabnet Peak Effective % . | . . . Robots Rewired . | . . . Allies Hacked . | . . . Hacks Repelled . | . . . Allies | -11 -10 -10 -------- Run | Yrd Mat Sub Total Allies . | . . . Largest Group . | . . . Highest-Rated Group . | . . . Highest-Rated Ally . | . . . Total Orders . | . . . Ally Attacks . | . . . Total Damage . | . . . Kills . | . . . Allies Corrupted . | . . . Allies Melted . | . . . Intel | -11 -10 -10 ------- Run | Yrd Mat Sub Active Infowar (turns) 1928 | 24 1883 21 Seismic 1921 | 24 1876 21 T.N.C. 7 | . 7 . Robot Analysis Total . | . . . Derelict Logs Recovered . | . . . Drone Launches . | . . . Drone Recoveries . | . . . Exploration | -11 -10 -10 ------------- Run | Yrd Mat Sub Turns Passed 2387 | 158 1884 345 Spaces Moved 1087 | 95 847 145 Core 4 | 4 . . Treads . | . . . Legs 1003 | 91 847 65 Wheels 80 | . . 80 Hover . | . . . Flight . | . . . Fastest Speed 50 | 50 120 110 Average Speed 133 | 117 133 142 Slowest Speed 190 | 120 190 190 Overloaded Moves . | . . . Propulsion Burnouts . | . . . Robots Hopped . | . . . Potential Cave-ins . | . . . Cave-ins Triggered . | . . . Exploration Rate (%) 35 | 4 90 12 Regions Visited 2 Branch Regions 1 Pre-discovered Areas . | . . . Known Exits Taken 1 | . 1 . Unknown Exits Taken 1 | 1 . . Scrap Searched 5 | . . 5 Spaces Dug 3 | . 3 . Terrain Destroyed 5 | . 5 . Melee 3 | . 3 . Projectile 1 | . 1 . AOE 1 | . 1 . Terrain Rammed . | . . . Walls Destroyed . | . . . Machines Disabled . | . . . Actions | -11 -10 -10 --------- Run | Yrd Mat Sub Total 1820 | 120 1474 226 Wait 498 | . 478 20 Move 1085 | 94 846 145 Hop . | . . . Pick Up 32 | 8 19 5 Fast Attach 14 | 7 4 3 Attach 6 | . 2 4 Detach 3 | . 2 1 Swap 27 | 1 20 6 Drop 35 | 1 29 5 Fire 110 | 9 70 31 Melee 9 | . 3 6 Ram . | . . . Kick 1 | . 1 . Crush . | . . . Escape Stasis . | . . . Rewire . | . . . Trap . | . . . Miscellaneous . | . . . Route ------- -11/Scrapyard -10/Materials (discovered 6 exits: *Mat x3 / [*Min x2] / *Sub) -10/Subcaves (discovered 2 exits: Mat x2) History --------- Turn | Location | Event 5 | -11/Scrapyard | Discovered new exit (range 15) 159 | -11/Scrapyard | Entered Materials 302 | -10/Materials | Build established: Mutant 679 | -10/Materials | Discovered new exit (range 7) 690 | -10/Materials | Build established: Scavenger-Mutant 716 | -10/Materials | Repaired Aluminum Leg 743 | -10/Materials | Repaired Ion Engine 1115 | -10/Materials | Discovered new exit (range 8) 1263 | -10/Materials | Discovered new exit (range 6) 1363 | -10/Materials | Loaded intel: 24 trap records 1369 | -10/Materials | Discovered new exit (range 11) 1440 | -10/Materials | Identified exit to Materials 1440 | -10/Materials | Identified exit to Subcaves 1681 | -10/Materials | Learned 4 Subcaves zone layouts 1721 | -10/Materials | Learned 2 Mines zone layouts 1831 | -10/Materials | Learned Storage stockpile data 1901 | -10/Materials | Learned 2 Storage zone layouts 2043 | -10/Materials | Entered Subcaves 2044 | -10/Subcaves | Approached by a straggling Scientist 2044 | -10/Subcaves | Identified exit to Materials 2114 | -10/Subcaves | Lost 3 parts (1p1u1w) 2227 | -10/Subcaves | Core integrity fell below 50% 2243 | -10/Subcaves | Core integrity fell below 20% 2388 | -10/Subcaves | Destroyed by 52-G5D(R) with Subdweller Laser Last Messages --------------- 02260_ Found 30 Matter. 02262_ Dropped Sub. Power Source. 02264_ Dropped Aluminum Leg. 02264_ Acquired Sub. Power Source. 02265_ Searching scrap... 02265_ Found Hvy. Battle Rifle. 02265_ Found 50 Matter. 02266_ Acquired 10 matter. 02267_ Dropped Sub. Machine Gun. 02268_ Acquired Hvy. Battle Rifle. 02269_ Acquired 10 matter. 02270_ Searching scrap... 02270_ Found Battle Cannon. 02270_ Found Shrapnel Trap. 02270_ Found 31 Matter. 02302_ Mak. Power Source destroyed. 02302_ 83-2FX(R) destroyed. 02306_ Acquired 20 matter. 02308_ Acquired Sub. Power Source. 02315_ Subatomizers dissect the Sub. Optics. Map ----- +----------------------------------------------------+ | ??????????????????????????????????????####### | | ??????????????????????????????????????#### | | ?????????????????????????????????????? | | ?????????????????????????????????????? | | ??????????????????????????????????????## | | ???????????????????????????????????????## ## | | ????????????????????????????#???????????####### | | ???????????????????????????? ?????????????????#### | | ??????#####????????????####? ????????????????????? | | ###??## ##??????????? ?# ????????????????????? | | # #### ##?????????? ? ????????????????????? | | ###????????# ? ?????????##?????????? | | ##???????# ? ????????? ##????????? | | #### #?####??# #? ##??????? #????????? | | ## #? ## ### #?# #??????? #????????? | | # ### ## #?# ????????" #????????? | | #### ##?# ## ### #????????" #????????? | | #### ### #?# ## #??????? ""#????????? | | # #?# ## ###???? "#????????? | | ###?# # " #???# ###????????? | | ## ###?# ##?#"""#??????????? | | ## ##?# ##""""#??????????? | | ## ## ### ##"" "" ###????????? | | # ## ###""" #????????? | | # RR#### #"# #???????? | | # ## ## @#?## "### #??????? | | # ## # ##??#""???## #??????? | | ## ## #???## ?????? ###??????? | | ?## ### ## #?????#???????##????????? | | ??# #??## #### ???????????????????????? | | ??# #????#### #?? ???????????????????????? | | ?? ????????## #?#### #??????????????????????? | | ??? ??????????#####????? #??????????????????????? | | ????????????????????????? ??????????????????????? | | ????????????????????????? ??????????????????????? | | ????????????????????????? ??????????????????????? | | ????????????????????????? ??????????????????????? | | ????????????????????????? ???????????????????????? | | ?????????????????????????#???????????????????????? | | ?????????????????????????????????????????????????? | | ?????????????????????????????????????????????????? | | ?????????????????????????????????????????????????? | | ?????????????????????????????????????????????????? | | ?????????????????????????????????????????????????? | | ?????????????????????????????????????????????????? | | ?????????????????????????????????????????????????? | | ?????????????????????????????????????????????????? | | ?????????????????????????????????????????????????? | | ?????????????????????????????????????????????????? | | ?????????????????????????????????????????????????? | +----------------------------------------------------+ Best States ------------- Heat Dissipation 25 Energy Generation 15 Energy Capacity 250 Matter Stores 300 Matter Capacity 300 Sight Range 16 Terrain Scan Density 10 Armor Coverage 150 Evasion (%) 55 Item Schematics ----------------- None Robot Schematics ------------------ None Fabricated ------------ Nothing Repaired ---------- Aluminum Leg | 73% | -10/Materials Ion Engine | 70% | -10/Materials Alien Tech Used ----------------- None Achievements -------------- None Challenges ------------ None Game ------ Seed GreatThrowingShell Manual? 0 Play Time 00:21:58 Cumulative 79.7 hours Start 2025.07.12 @ 17:14:40 End 2025.07.12 @ 17:36:10 Sessions 1 Manual Loads 0 Difficulty Rogue Special Mode None Game No. 84 Rogue 84 Adventurer 0 Explorer 0 Win Type - Total 0 Types 0/0/0/0/0/0/0/0/0/0 Lore% 44 Gallery% 40 Achievement% 30 Wizard Run 0 Options --------- Layout 1 ASCII 0 Keyboard 0 Movement Mouse Keybinds 0 Fullscreen 2 Font 48/Smallcaps Map View 50x35 Zoom Use 0% Tactical HUD 1 Map Filters NONE Filters NONE Steam 0 RUN: 5e8dd82f-2a90-41b7-ab80-9aea4553b989